fUSD/lending_fUSD_20250809
["ID","MTS","AMOUNT","RATE_DAILY","PERIOD"]
[378063848,1754716236733,-500.0,0.00018744,2]
[378063849,1754716236743,-500.0,0.00018744,2]
[378063850,1754716236752,-500.0,0.00018744,2]
[378063851,1754716236761,-500.0,0.00018744,2]
[378063853,1754716236770,-500.0,0.00018744,2]
[378063854,1754716236779,-23900.0,0.00018755,2]
[378063855,1754716236790,-5199.43684444,0.00018775,2]
[378063856,1754716236800,-500.0,0.00018799,2]
[378063857,1754716236809,-5391.81600769,0.0001883,2]
[378063858,1754716236818,-500.0,0.00018854,2]
[378063859,1754716236827,-5591.31319997,0.00018885,2]
[378063860,1754716236837,-5798.19178837,0.0001894,2]
[378063861,1754716236847,-151.0,0.00018973,2]
[378063862,1754716236856,-151.0,0.00018973,2]
[378063863,1754716236866,-4138.90944533,0.00018995,2]
[378063864,1754716236875,-151.0,0.00019,2]
[378063865,1754716236885,-151.0,0.00019,2]
[378063866,1754716236894,-151.0,0.00019,2]
[378063867,1754716236903,-151.0,0.00019,2]
[378063868,1754716236913,-151.0,0.00019,2]
[378063869,1754716236922,-151.0,0.00019,2]
[378063870,1754716236932,-151.0,0.0001901,2]
[378063871,1754716236943,-151.0,0.0001901,2]
[378063872,1754716236954,-151.0,0.0001901,2]
[378063873,1754716236963,-151.0,0.0001901,2]
[378063874,1754716236973,-151.0,0.0001901,2]
[378063875,1754716236983,-151.0,0.0001901,2]
[378063876,1754716236994,-379.0364398,0.00019024,2]
[378063877,1754716237004,-600.0,0.00019094,2]
[378063878,1754716237013,-600.0,0.00019094,2]
[378063879,1754716237022,-479.94,0.00019094,2]
[378063880,1754716237032,-171.11,0.00019108,2]
[378063881,1754716237042,-482.97,0.0001911,2]
[378063882,1754716237052,-225.0,0.0001913,2]
[378063883,1754716237062,-151.0,0.00019158,2]
[378063884,1754716237071,-151.0,0.00019178,2]
[378063885,1754716237080,-177.49,0.00019178,2]
[378063886,1754716237090,-2581.24,0.00019178,2]
[378063887,1754716237100,-181.18,0.00019198,2]
[378063888,1754716237110,-600.0,0.00019292,2]
[378063889,1754716237123,-153.98410028,0.00019292,2]
[378063890,1754716237133,-151.0,0.00019292,2]
[378063891,1754716237142,-154.64160342,0.00019292,2]
[378063892,1754716237152,-151.0,0.0001935,2]
[378063893,1754716237162,-151.0,0.0001935,2]
[378063894,1754716237171,-151.0,0.0001935,2]
[378063895,1754716237181,-151.0,0.0001935,2]
[378063896,1754716237190,-151.0,0.0001935,2]
[378063897,1754716237201,-151.0,0.0001935,2]
[378063898,1754716237210,-151.0,0.0001935,2]
[378063899,1754716237220,-201.12062992,0.00019399,2]
[378063900,1754716237232,-4619.61041937,0.00019484,2]
[378063901,1754716237242,-191.96,0.00019587,2]
[378063902,1754716237251,-501.85345794,0.00019616,2]
[378063903,1754716237261,-974.097,0.0001964,2]
[378063904,1754716237271,-277.51309332,0.00019706,2]
[378063905,1754716237280,-156.587,0.00019726,2]
[378063906,1754716237292,-420.0,0.00019783,2]
[378063907,1754716237302,-2500.0,0.000198,2]
[378063908,1754716237311,-150.0,0.00019831,2]
[378063910,1754716237320,-500.0,0.00019831,2]
[378063911,1754716237331,-150.0,0.00019831,2]
[378063912,1754716237340,-150.0,0.00019831,2]
[378063913,1754716237350,-150.0,0.00019831,2]
[378063914,1754716237359,-256.26841048,0.00019831,2]
[378063915,1754716237370,-155.91733727,0.00019831,2]
[378063916,1754716237380,-150.0,0.00019831,2]
[378063917,1754716237390,-150.0,0.00019831,2]
[378063918,1754716237399,-150.0,0.00019831,2]
[378063919,1754716237409,-205.5495666,0.00019831,2]
[378063920,1754716237419,-189.99509286,0.00019831,2]
[378063921,1754716237428,-244.13330318,0.00019831,2]
[378063922,1754716237438,-150.0,0.00019831,2]
[378063923,1754716237447,-150.0,0.00019831,2]
[378063924,1754716237456,-150.0,0.00019831,2]
[378063925,1754716237466,-600.0,0.0001984,2]
[378063926,1754716237476,-151.0,0.0001984,2]
[378063927,1754716237485,-420.0,0.00019848,2]
[378063928,1754716237494,-1379.62439,0.0001985,2]
[378063929,1754716237504,-1680.0,0.00019881,2]
[378063930,1754716237513,-1000.0,0.00019897,2]
[378063931,1754716237523,-308.07588081,0.00019897,2]
[378063932,1754716237532,-2388.89564104,0.00019897,2]
[378063933,1754716237542,-166.313606,0.000199,2]
[378063934,1754716237552,-151.0,0.000199,2]
[378063935,1754716237561,-151.0,0.000199,2]
[378063936,1754716237571,-151.0,0.000199,2]
[378063937,1754716237580,-151.0,0.000199,2]
[378063938,1754716237590,-151.0,0.000199,2]
[378063939,1754716237600,-151.0,0.000199,2]
[378063940,1754716237610,-1000.0,0.000199,2]
[378063941,1754716237619,-37203.0546,0.000199,2]
[378063942,1754716237629,-1139.52720865,0.000199,2]
[378063943,1754716237638,-1139.5272086,0.000199,2]
[378063944,1754716237647,-1139.5272086,0.000199,2]
[378063945,1754716237656,-2500.0,0.00019914,2]
[378063946,1754716237666,-300.0,0.00019914,2]
[378063947,1754716237679,-500.0,0.00019914,2]
[378063948,1754716237688,-300.0,0.00019914,2]
[378063949,1754716237697,-404.44,0.00019951,2]
[378063950,1754716237707,-151.0,0.00019972,2]
[378063951,1754716237716,-297.613275,0.00019972,2]
[378063952,1754716237725,-500.0,0.00019973,2]
[378063953,1754716237735,-500.0,0.00019973,2]
[378063954,1754716237744,-500.0,0.00019973,2]
[378063955,1754716237754,-150.0,0.00019977,2]
[378063956,1754716237763,-532.27422304,0.00019978,2]
[378063957,1754716237773,-678.38871564,0.00019979,2]
[378063958,1754716237783,-248.71531821,0.00019979,2]
[378063959,1754716237793,-824.50320824,0.0001998,2]
[378063960,1754716237802,-970.61770084,0.00019981,2]
[378063961,1754716237811,-1192.44016945,0.00019983,5]
[378063962,1754716237820,-1116.73219344,0.00019983,2]
[378063964,1754716237829,-3486.18655829,0.00019984,2]
[378063966,1754716237838,-1262.84668604,0.00019984,2]
[378063968,1754716237847,-151.0,0.00019985,2]
[378063969,1754716237857,-151.0,0.00019985,2]
[378063970,1754716237866,-151.0,0.00019985,2]
[378063971,1754716237875,-151.0,0.00019985,2]
[378063972,1754716237884,-151.0,0.00019985,2]
[378063973,1754716237894,-1408.96117864,0.00019985,2]
[378063974,1754716237903,-152.331688,0.00019986,2]
[378063975,1754716237913,-151.0,0.00019986,2]
[378063976,1754716237922,-151.0,0.00019986,2]
[378063977,1754716237931,-151.0,0.00019986,2]
[378063978,1754716237941,-151.0,0.00019986,2]
[378063979,1754716237950,-217.629194,0.00019986,2]
[378063980,1754716237959,-151.0,0.00019986,2]
[378063982,1754716237969,-152.476073,0.00019986,2]
[378063984,1754716237978,-151.0,0.00019986,2]
[378063986,1754716237987,-151.0,0.00019986,2]
[378063988,1754716237996,-265.459406,0.00019986,2]
[378063990,1754716238005,-1555.07567124,0.00019986,2]
[378063992,1754716238014,-1701.19016382,0.00019987,2]
[378063994,1754716238023,-151.0,0.00019997,2]
[378063996,1754716238033,-155.411354,0.00019997,2]
[378063998,1754716238044,-152.291936,0.00019997,2]
[378064000,1754716238053,-154.420231,0.00019997,2]
[378064002,1754716238062,-153.480368,0.00019997,2]
[378064003,1754716238071,-151.0,0.00019997,2]
[378064005,1754716238079,-151.0,0.00019997,2]
[378064007,1754716238089,-151.0,0.00019997,2]
[378064009,1754716238099,-152.671383,0.00019997,2]
[378064011,1754716238109,-151.0,0.00019997,2]
[378064014,1754716238121,-151.0,0.00019997,2]
[378064037,1754716238342,-151.0,0.00019997,2]
[378064039,1754716238354,-151.0,0.00019997,2]
[378064041,1754716238363,-151.0,0.00019997,2]
[378064043,1754716238372,-151.0,0.00019997,2]
[378064045,1754716238381,-151.0,0.00019997,2]
[378064047,1754716238391,-154.271976,0.00019997,2]
[378064049,1754716238401,-151.0,0.00019997,2]
[378064051,1754716238411,-151.0,0.00019997,2]
[378064053,1754716238420,-151.0,0.00019997,2]
[378064055,1754716238429,-151.566822,0.00019997,2]
[378064057,1754716238439,-151.0,0.00019997,2]
[378064059,1754716238448,-151.0,0.00019997,2]
[378064061,1754716238458,-151.0,0.00019997,2]
[378064063,1754716238468,-4323.404429,0.00019997,2]
[378064065,1754716238477,-178.622423,0.00019997,2]
[378064067,1754716238487,-287.695285,0.00019997,2]
[378064069,1754716238497,-151.0,0.00019997,2]
[378064071,1754716238506,-151.0,0.00019997,2]
[378064073,1754716238516,-151.0,0.00019997,2]
[378064075,1754716238525,-281.598556,0.00019997,2]
[378064077,1754716238535,-151.344271,0.00019997,2]
[378064079,1754716238547,-151.0,0.00019997,2]
[378064081,1754716238557,-151.0,0.00019997,2]
[378064082,1754716238566,-152.282276,0.00019997,2]
[378064085,1754716238575,-151.0,0.00019997,2]
[378064087,1754716238585,-151.0,0.00019997,2]
[378064089,1754716238595,-151.0,0.00019997,2]
[378064090,1754716238605,-155.663503,0.00019997,2]
[378064093,1754716238614,-151.0,0.00019997,2]
[378064094,1754716238624,-151.0,0.00019997,2]
[378064096,1754716238633,-151.0,0.00019997,2]
[378064098,1754716238643,-160.671499,0.00019997,2]
[378064100,1754716238652,-25022.1060603,0.00019997,2]
[378064102,1754716238661,-178.616977,0.00019997,2]
[378064104,1754716238671,-162.208616,0.00019997,2]
[378064106,1754716238680,-151.0,0.00019997,2]
[378064108,1754716238689,-42420.07354943,0.00019997,2]
[378064111,1754716238712,-2965.27595549,0.00019997,2]
[378064120,1754716238789,-986.13734515,0.00019997,2]
[378064122,1754716238803,-2331.57425993,0.00019997,2]
[378064128,1754716238844,-867.00085043,0.00019698,3]
[378064130,1754716238856,-20.99914957,0.00019698,3]
[378064132,1754716238866,-241.78722534,0.00019997,2]
[378064134,1754716238877,-356.00000008,0.00019997,2]
[378064137,1754716238894,-5181.82677703,0.00019997,2]
[378064139,1754716238905,-20601.0000001,0.00019997,2]
[378064141,1754716238917,-13731.60584835,0.00019997,2]
[378064143,1754716238926,-151.0,0.00019997,2]
[378064145,1754716238936,-171.306468,0.00019997,2]
[378064147,1754716238946,-153.821655,0.00019997,2]
[378064149,1754716238955,-151.0,0.00019997,2]
[378064151,1754716238964,-151.0,0.00019997,2]
[378064153,1754716238974,-151.0,0.00019997,2]
[378064155,1754716238983,-151.0,0.00019997,2]
[378064157,1754716238992,-151.0,0.00019997,2]
[378064159,1754716239002,-151.0,0.00019997,2]
[378064161,1754716239011,-151.0,0.00019997,2]
[378064163,1754716239023,-151.0,0.00019997,2]
[378064165,1754716239032,-151.0,0.00019997,2]
[378064167,1754716239041,-151.0,0.00019997,2]
[378064169,1754716239054,-151.0,0.00019997,2]
[378064171,1754716239064,-284.690384,0.00019997,2]
[378064173,1754716239074,-151.0,0.00019997,2]
[378064175,1754716239084,-151.0,0.00019997,2]
[378064177,1754716239094,-151.0,0.00019997,2]
[378064179,1754716239103,-151.0,0.00019997,2]
[378064181,1754716239113,-151.0,0.00019997,2]
[378064183,1754716239128,-151.0,0.00019997,2]
[378064185,1754716239137,-151.0,0.00019997,2]
[378064187,1754716239146,-151.0,0.00019997,2]
[378064189,1754716239156,-151.0,0.00019997,2]
[378064191,1754716239166,-89701.7419358,0.00019997,2]
[378064302,1754716240374,-327.84001672,0.00019996,3]
[378064304,1754716240386,-560.15998328,0.00019996,3]
[378064306,1754716240395,-1411.09700685,0.00019997,2]
[378064308,1754716240407,-5970.5686137,0.00019997,2]
[378064311,1754716240418,-1346.01050975,0.00019997,2]
[378064313,1754716240427,-151.0,0.00019997,2]
[378064315,1754716240436,-151.0,0.00019997,2]
[378064317,1754716240445,-105.51979835,0.00019997,2]
[378064319,1754716240456,-45.48020165,0.00019997,2]
[378064321,1754716240466,-216.24829841,0.00019999,2]
[378064325,1754716240488,-266.46256087,0.0001988,2]
[378064327,1754716240498,-283.75170159,0.00019999,2]
[378064329,1754716240507,-500.0,0.00019999,2]
[378064331,1754716240516,-500.0,0.00019999,2]
[378064333,1754716240525,-500.0,0.00019999,2]
[378064335,1754716240535,-500.0,0.00019999,2]
[378064337,1754716240547,-245.0,0.00019999,2]
[378064339,1754716240556,-817.6,0.0002,2]
[378064341,1754716240565,-796.2,0.0002,2]
[378064343,1754716240575,-1596.80419189,0.0002,2]
[378064345,1754716240586,-42168.37542702,0.0002,2]
[378064347,1754716240595,-682.05367778,0.0002,2]
[378064349,1754716240604,-2800.0,0.0002,2]
[378064351,1754716240613,-1000.0,0.0002,2]
[378064352,1754716240622,-1012.44845628,0.0002,2]
[378064354,1754716240631,-73879.66266738,0.0002,2]
[378064357,1754716240646,-561.58222316,0.0002,2]
[378064565,1754716242741,-1597.79716709,0.00019997,2]
[378064570,1754716242788,-1701.51714821,0.00019997,2]
[378064572,1754716242801,-8653.36593209,0.0002,2]
[378064575,1754716242812,-935.03657453,0.0002,2]
[378064584,1754716242897,-8512.79421145,0.0002,2]
[378064587,1754716242909,-242.118215,0.0002,2]
[378064589,1754716242918,-152.881551,0.0002,2]
[378064591,1754716242928,-196.15680095,0.0002,2]
[378064592,1754716242938,-151.0,0.0002,2]
[378064594,1754716242947,-151.0,0.0002,2]
[378064597,1754716242957,-151.0,0.0002,2]
[378064599,1754716242967,-151.0,0.0002,2]
[378064601,1754716242978,-151.0,0.0002,2]
[378064602,1754716242989,-151.0,0.0002,2]
[378064604,1754716242998,-500.0,0.0002,2]
[378064606,1754716243008,-500.0,0.0002,2]
[378064608,1754716243017,-194.68035323,0.0002,2]
[378064610,1754716243027,-150.0,0.0002,2]
[378064612,1754716243036,-150.58852215,0.0002,2]
[378064615,1754716243049,-150.0,0.0002,2]
[378064616,1754716243059,-151.0,0.0002,2]
[378064618,1754716243068,-151.0,0.0002,2]
[378064621,1754716243078,-151.0,0.0002,2]
[378064622,1754716243087,-151.0,0.0002,2]
[378064624,1754716243096,-151.0,0.0002,2]
[378064626,1754716243107,-151.0,0.0002,2]
[378064628,1754716243120,-151.0,0.0002,2]
[378064631,1754716243130,-151.0,0.0002,2]
[378064632,1754716243139,-182.802524,0.0002,2]
[378064635,1754716243149,-151.0,0.0002,2]
[378064637,1754716243158,-182.802524,0.0002,2]
[378064639,1754716243169,-151.0,0.0002,2]
[378064641,1754716243178,-154.241746,0.0002,2]
[378064642,1754716243187,-151.0,0.0002,2]
[378064645,1754716243198,-151.0,0.0002,2]
[378064646,1754716243208,-264.58154,0.0002,2]
[378064649,1754716243217,-151.0,0.0002,2]
[378064650,1754716243227,-151.0,0.0002,2]
[378064652,1754716243236,-152.693073,0.0002,2]
[378064655,1754716243246,-151.0,0.0002,2]
[378064657,1754716243255,-151.0,0.0002,2]
[378064659,1754716243264,-151.0,0.0002,2]
[378064661,1754716243274,-151.0,0.0002,2]
[378064662,1754716243295,-151.0,0.0002,2]
[378064663,1754716243315,-151.0,0.0002,2]
[378064664,1754716243331,-151.0,0.0002,2]
[378064665,1754716243341,-152.412183,0.0002,2]
[378064666,1754716243351,-152.481414,0.0002,2]
[378064667,1754716243360,-151.0,0.0002,2]
[378064668,1754716243370,-151.0,0.0002,2]
[378064670,1754716243379,-151.0,0.0002,2]
[378064672,1754716243389,-151.0,0.0002,2]
[378064674,1754716243399,-153.478788,0.0002,2]
[378064676,1754716243408,-151.0,0.0002,2]
[378064678,1754716243418,-194.766581,0.0002,2]
[378064680,1754716243427,-194.766581,0.0002,2]
[378064682,1754716243437,-194.766581,0.0002,2]
[378064684,1754716243447,-194.766581,0.0002,2]
[378064686,1754716243456,-231.78307,0.0002,2]
[378064688,1754716243465,-151.0,0.0002,2]
[378064690,1754716243474,-173.608415,0.0002,2]
[378064692,1754716243484,-151.0,0.0002,2]
[378064694,1754716243493,-151.0,0.0002,2]
[378064696,1754716243502,-151.0,0.0002,2]
[378064698,1754716243511,-225.576907,0.0002,2]
[378064700,1754716243521,-151.0,0.0002,2]
[378064702,1754716243530,-151.0,0.0002,2]
[378064704,1754716243539,-151.0,0.0002,2]
[378064706,1754716243552,-151.0,0.0002,2]
[378064708,1754716243562,-163.647352,0.0002,2]
[378064710,1754716243571,-151.0,0.0002,2]
[378064712,1754716243581,-151.0,0.0002,2]
[378064714,1754716243590,-151.0,0.0002,2]
[378064716,1754716243599,-152.822553,0.0002,2]
[378064718,1754716243608,-151.0,0.0002,2]
[378064720,1754716243617,-151.0,0.0002,2]
[378064722,1754716243626,-151.0,0.0002,2]
[378064724,1754716243636,-151.0,0.0002,2]
[378064726,1754716243646,-151.0,0.0002,2]
[378064728,1754716243655,-151.0,0.0002,2]
[378064730,1754716243666,-151.0,0.0002,2]
[378064732,1754716243675,-1379.62438,0.0002,2]
[378064734,1754716243684,-165.568054,0.0002,2]
[378064735,1754716243694,-151.0,0.0002,2]
[378064737,1754716243703,-163.006452,0.0002,2]
[378064740,1754716243712,-151.0,0.0002,2]
[378064742,1754716243722,-151.0,0.0002,2]
[378064743,1754716243731,-151.0,0.0002,2]
[378064746,1754716243741,-151.0,0.0002,2]
[378064748,1754716243751,-157.29948843,0.0002,2]
[378064750,1754716243761,-151.0,0.0002,2]
[378064752,1754716243773,-151.0,0.0002,2]
[378064754,1754716243782,-151.0,0.0002,2]
[378064756,1754716243791,-151.0,0.0002,2]
[378064758,1754716243803,-151.917751,0.0002,2]
[378064777,1754716243976,-151.0,0.0002,2]
[378064779,1754716243987,-151.0,0.0002,2]
[378064781,1754716243996,-151.0,0.0002,2]
[378064783,1754716244005,-174.267034,0.0002,2]
[378064785,1754716244015,-151.0,0.0002,2]
[378064787,1754716244024,-151.0,0.0002,2]
[378064789,1754716244033,-153.539134,0.0002,2]
[378064791,1754716244042,-151.0,0.0002,2]
[378064793,1754716244056,-151.0,0.0002,2]
[378064795,1754716244066,-151.0,0.0002,2]
[378064797,1754716244075,-151.0,0.00020011,2]
[378064799,1754716244085,-151.0,0.00020011,2]
[378064801,1754716244094,-151.0,0.00020011,2]
[378064803,1754716244104,-151.0,0.00020011,2]
[378064805,1754716244114,-151.0,0.00020011,2]
[378064807,1754716244126,-163.150956,0.00020011,2]
[378064809,1754716244135,-152.335455,0.00020011,2]
[378064811,1754716244144,-151.0,0.00020011,2]
[378064813,1754716244154,-151.543144,0.00020011,2]
[378064815,1754716244165,-152.651864,0.00020011,2]
[378064817,1754716244175,-200.0,0.00020011,2]
[378064818,1754716244184,-200.0,0.00020011,2]
[378064820,1754716244194,-200.0,0.00020011,2]
[378064822,1754716244203,-200.0,0.00020011,2]
[378064823,1754716244212,-200.0,0.00020011,2]
[378064825,1754716244221,-200.0,0.00020011,2]
[378064826,1754716244230,-200.0,0.00020011,2]
[378064828,1754716244240,-200.0,0.00020011,2]
[378064830,1754716244249,-200.0,0.00020011,2]
[378064831,1754716244259,-200.0,0.00020011,2]
[378064833,1754716244268,-200.0,0.00020011,2]
[378064835,1754716244278,-200.0,0.00020011,2]
[378064836,1754716244287,-200.0,0.00020011,2]
[378064838,1754716244297,-223.676513,0.00020011,2]
[378064840,1754716244308,-151.0,0.00020011,2]
[378064841,1754716244316,-151.0,0.00020011,2]
[378064843,1754716244325,-153.8711,0.00020011,2]
[378064844,1754716244334,-151.0,0.00020011,2]
[378064846,1754716244344,-151.183378,0.00020011,2]
[378064848,1754716244353,-151.0,0.00020011,2]
[378064850,1754716244363,-155.859922,0.00020011,2]
[378064851,1754716244372,-151.0,0.00020011,2]
[378064853,1754716244382,-151.0,0.00020011,2]
[378064855,1754716244391,-157.848827,0.00020011,2]
[378064856,1754716244400,-153.519346,0.00020011,2]
[378064858,1754716244410,-151.0,0.00020011,2]
[378064860,1754716244419,-250.0,0.00020013,2]
[378064861,1754716244429,-482.97,0.0002002,2]
[378064863,1754716244438,-1379.62438,0.000201,2]
[378064864,1754716244447,-150.0,0.00020105,2]
[378064866,1754716244457,-500.0,0.00020105,2]
[378064868,1754716244466,-150.0,0.00020105,2]
[378064870,1754716244477,-150.0,0.00020105,2]
[378064871,1754716244486,-150.0,0.00020105,2]
[378064873,1754716244496,-150.0,0.00020105,2]
[378064875,1754716244505,-150.0,0.00020105,2]
[378064876,1754716244514,-150.0,0.00020105,2]
[378064878,1754716244523,-160.0,0.00020113,2]
[378064880,1754716244533,-5996.02985074,0.00020113,2]
[378064881,1754716244542,-373.07297731,0.00020113,2]
[378064883,1754716244553,-1139.5272086,0.00020117,2]
[378064885,1754716244563,-152.0,0.0002014,3]
[378064887,1754716244572,-152.05,0.00020187,2]
[378064889,1754716244581,-4619.61041937,0.00020198,2]
[378064890,1754716244591,-1789.24769837,0.000202,2]
[378064892,1754716244600,-500.0,0.00020274,2]
[378064894,1754716244609,-500.0,0.00020274,2]
[378064895,1754716244618,-281.52015357,0.00020274,2]
[378064897,1754716244628,-150.0,0.00020302,2]
[378064899,1754716244638,-440.0,0.0002032,2]
[378064901,1754716244650,-1379.62439,0.0002035,2]
[378064903,1754716244660,-150.0,0.00020379,2]
[378064905,1754716244670,-450.0,0.00020379,2]
[378064906,1754716244679,-164.56230689,0.00020379,2]
[378064908,1754716244689,-279.55741847,0.00020379,2]
[378064910,1754716244698,-150.0,0.00020379,2]
[378064912,1754716244707,-200.0,0.00020379,2]
[378064913,1754716244716,-216.02550625,0.00020379,2]
[378064915,1754716244726,-150.0,0.00020379,2]
[378064917,1754716244735,-618.22038949,0.00020388,2]
[378064919,1754716244744,-151.0,0.00020388,2]
[378064920,1754716244753,-1139.5272086,0.0002041,2]
[378064922,1754716244762,-888.0,0.00020496,3]
[378064924,1754716244774,-888.0,0.00020497,3]
[378064926,1754716244783,-167.42,0.00020516,2]
[378064927,1754716244791,-504.96536559,0.00020521,2]
[378064929,1754716244801,-1000.0,0.00020521,2]
[378064931,1754716244810,-552.41412054,0.00020521,2]
[378064933,1754716244820,-303.04791849,0.00020548,2]
[378064934,1754716244828,-500.0,0.00020548,2]
[378064936,1754716244838,-2388.89564096,0.00020567,2]
[378064938,1754716244847,-1379.62438,0.000206,2]
[378064940,1754716244856,-514.0,0.00020606,2]
[378064942,1754716244865,-181.18,0.00020638,2]
[378064943,1754716244874,-150.0,0.00020653,2]
[378064945,1754716244883,-150.0,0.00020653,2]
[378064947,1754716244893,-200.0,0.00020653,2]
[378064948,1754716244902,-183.54,0.000207,2]
[378064950,1754716244911,-1139.5272086,0.00020702,2]
[378064952,1754716244920,-5000.0,0.0002071,2]
[378064954,1754716244930,-500.0,0.00020822,2]
[378064956,1754716244939,-1379.62439,0.0002086,2]
[378064957,1754716244949,-4619.61041937,0.00020912,2]
[378064959,1754716244959,-150.0,0.00020927,2]
[378064961,1754716244967,-150.0,0.00020927,2]
[378064963,1754716244977,-482.97,0.0002093,2]
[378064964,1754716244986,-160.72025057,0.00020936,2]
[378064966,1754716244995,-1139.5272086,0.00020995,2]
[378064968,1754716245004,-2045.342012,0.00021,2]
[378064970,1754716245014,-150.36,0.00021002,2]
[378064971,1754716245023,-1000.0,0.00021028,2]
[378064973,1754716245033,-464.10342692,0.00021068,2]
[378064975,1754716245041,-260.01879541,0.00021096,2]
[378064977,1754716245054,-250.0,0.00021201,2]
[378064978,1754716245064,-250.0,0.00021201,2]
[378064980,1754716245074,-2388.89564096,0.00021237,2]
[378064982,1754716245083,-151.0,0.00021239,2]
[378064984,1754716245093,-151.0,0.00021239,2]
[378064986,1754716245102,-151.0,0.00021239,2]
[378064987,1754716245112,-151.0,0.00021239,2]
[378064989,1754716245124,-1139.5272086,0.00021288,2]
[378064991,1754716245133,-164.283123,0.00021332,2]
[378064992,1754716245142,-257.91778498,0.00021348,2]
[378064994,1754716245152,-242.34,0.000214,2]
[378064996,1754716245162,-151.0,0.00021421,2]
[378064998,1754716245172,-151.0,0.00021421,2]
[378065000,1754716245181,-151.0,0.00021421,2]
[378065001,1754716245191,-3749.15,0.00021445,2]
[378065002,1754716245201,-163.212479,0.00021445,2]
[378065003,1754716245210,-151.0,0.00021445,2]
[378065004,1754716245220,-151.0,0.00021445,2]
[378065005,1754716245230,-160.0,0.00021482,2]
[378065006,1754716245239,-6217.88295522,0.00021482,2]
[378065007,1754716245248,-386.87667747,0.00021482,2]
[378065009,1754716245257,-151.0,0.00021482,2]
[378065010,1754716245267,-151.0,0.00021482,2]
[378065011,1754716245277,-151.0,0.00021482,2]
[378065012,1754716245286,-151.0,0.00021482,2]
[378065013,1754716245296,-151.0,0.00021482,2]
[378065014,1754716245308,-151.0,0.00021482,2]
[378065016,1754716245317,-151.0,0.00021482,2]
[378065017,1754716245326,-151.0,0.00021482,2]
[378065019,1754716245334,-201.83584916,0.00021483,2]
[378065022,1754716245344,-430.0,0.000215,2]
[378065025,1754716245353,-152.02,0.00021567,2]
[378065028,1754716245363,-626.41,0.00021567,2]
[378065031,1754716245373,-359.18,0.00021567,2]
[378065033,1754716245382,-309.66,0.00021567,2]
[378065035,1754716245392,-152.37,0.00021567,2]
[378065037,1754716245401,-162.16,0.00021567,2]
[378065040,1754716245411,-169.33,0.00021567,2]
[378065043,1754716245422,-151.64,0.00021567,2]
[378065046,1754716245432,-404.44,0.00021579,2]
[378065049,1754716245442,-1139.5272086,0.0002158,2]
[378065051,1754716245451,-587.0,0.00021583,2]
[378065053,1754716245463,-1767.67860261,0.0002159,2]
[378065055,1754716245472,-4619.61041937,0.00021626,2]
[378065057,1754716245482,-290.0,0.00021652,2]
[378065059,1754716245492,-151.0,0.00021724,2]
[378065062,1754716245501,-151.0,0.00021724,2]
[378065064,1754716245511,-151.0,0.00021724,2]